[Event "Late-Titled-Tuesday-Blitz-June-25-2024"]
[Site "Chess.com"]
[Date "2024.06.25"]
[Round "2"]
[White "ozates"]
[Black "igorkovalenko"]
[Result "0-1"]
[WhiteElo "2614"]
[BlackElo "2996"]
[TimeControl "180+1"]
[EndTime "14:17:41 PDT"]
[Termination "igorkovalenko won on time"]

1. e4 {[%clk 0:03:00.9]} 1... d5 {[%clk 0:02:43.8]} 2. exd5 {[%clk 0:03:00.1]}
2... Qxd5 {[%clk 0:02:44.7]} 3. Nc3 {[%clk 0:03:00]} 3... Qa5 {[%clk 0:02:45.3]}
4. d4 {[%clk 0:03:00]} 4... Nf6 {[%clk 0:02:45.6]} 5. h3 {[%clk 0:03:00.6]} 5...
c6 {[%clk 0:02:46.3]} 6. Nf3 {[%clk 0:03:00.7]} 6... Bf5 {[%clk 0:02:47]} 7. Ne5
{[%clk 0:03:01]} 7... Nbd7 {[%clk 0:02:45.5]} 8. Nc4 {[%clk 0:02:50.4]} 8... Qc7
{[%clk 0:02:44]} 9. d5 {[%clk 0:02:47.6]} 9... cxd5 {[%clk 0:02:43.1]} 10. Nxd5
{[%clk 0:02:48.2]} 10... Nxd5 {[%clk 0:02:43.3]} 11. Qxd5 {[%clk 0:02:49.1]}
11... e6 {[%clk 0:02:43.5]} 12. Qd4 {[%clk 0:02:41.3]} 12... Qc5 {[%clk
0:02:35.7]} 13. Qxc5 {[%clk 0:02:31.9]} 13... Bxc5 {[%clk 0:02:36.6]} 14. c3
{[%clk 0:02:30.1]} 14... b5 {[%clk 0:02:32.8]} 15. Ne3 {[%clk 0:02:27.1]} 15...
b4 {[%clk 0:02:26.1]} 16. Nxf5 {[%clk 0:02:26.8]} 16... exf5 {[%clk 0:02:27]}
17. Bb5 {[%clk 0:02:14.2]} 17... bxc3 {[%clk 0:02:27.1]} 18. bxc3 {[%clk
0:02:14.6]} 18... O-O-O {[%clk 0:02:24.4]} 19. Bf4 {[%clk 0:02:03.7]} 19...
Rhe8+ {[%clk 0:02:22.7]} 20. Kf1 {[%clk 0:02:03.5]} 20... Re6 {[%clk 0:02:23.1]}
21. Bc4 {[%clk 0:01:55.4]} 21... Rb6 {[%clk 0:02:21.8]} 22. Bb3 {[%clk
0:01:17.5]} 22... Nf6 {[%clk 0:02:15]} 23. g4 {[%clk 0:01:17.5]} 23... Ne4
{[%clk 0:02:13]} 24. gxf5 {[%clk 0:01:14.7]} 24... Nxf2 {[%clk 0:02:09.7]} 25.
Rh2 {[%clk 0:01:13.9]} 25... Nd3 {[%clk 0:02:06.5]} 26. Bg5 {[%clk 0:01:09.7]}
26... f6 {[%clk 0:02:00.7]} 27. Bh4 {[%clk 0:01:08.3]} 27... g5 {[%clk
0:01:53.4]} 28. Bg3 {[%clk 0:01:02.1]} 28... Bd6 {[%clk 0:01:53.2]} 29. Bxd6
{[%clk 0:00:54.2]} 29... Rdxd6 {[%clk 0:01:52.3]} 30. Re2 {[%clk 0:00:50.6]}
30... Ne5 {[%clk 0:01:52.6]} 31. c4 {[%clk 0:00:48.1]} 31... Rd4 {[%clk
0:01:49.4]} 32. c5 {[%clk 0:00:46.7]} 32... Rc6 {[%clk 0:01:49.7]} 33. Be6+
{[%clk 0:00:43.5]} 33... Kc7 {[%clk 0:01:48.5]} 34. Rb1 {[%clk 0:00:41.2]} 34...
Rxc5 {[%clk 0:01:46.2]} 35. Reb2 {[%clk 0:00:41.1]} 35... Kd6 {[%clk 0:01:45.4]}
36. Rb8 {[%clk 0:00:38.2]} 36... Nc6 {[%clk 0:01:30.5]} 37. R8b5 {[%clk
0:00:33.6]} 37... Rf4+ {[%clk 0:01:21.8]} 38. Kg1 {[%clk 0:00:33.4]} 38... Nd4
{[%clk 0:01:16.8]} 39. Rxc5 {[%clk 0:00:31.9]} 39... Kxc5 {[%clk 0:01:17.7]} 40.
Rb7 {[%clk 0:00:31.8]} 40... h5 {[%clk 0:01:14.7]} 41. Rxa7 {[%clk 0:00:31.1]}
41... Rf3 {[%clk 0:01:08.9]} 42. Kg2 {[%clk 0:00:29.8]} 42... h4 {[%clk
0:01:09.4]} 43. Rc7+ {[%clk 0:00:25]} 43... Kb6 {[%clk 0:01:06.3]} 44. Rc4
{[%clk 0:00:24]} 44... Rg3+ {[%clk 0:01:06.6]} 45. Kf2 {[%clk 0:00:24]} 45...
Nb5 {[%clk 0:01:01.1]} 46. a4 {[%clk 0:00:23.4]} 46... Nc3 {[%clk 0:01:00.4]}
47. Rc8 {[%clk 0:00:10.9]} 47... Rxh3 {[%clk 0:00:54.6]} 48. Ra8 {[%clk
0:00:09.1]} 48... Ne4+ {[%clk 0:00:52.1]} 49. Kg2 {[%clk 0:00:09.5]} 49... Rg3+
{[%clk 0:00:52.3]} 50. Kh2 {[%clk 0:00:10.1]} 50... Ra3 {[%clk 0:00:52.2]} 51.
Rb8+ {[%clk 0:00:07.1]} 51... Kc5 {[%clk 0:00:47.6]} 52. Ra8 {[%clk 0:00:07.5]}
52... Kd4 {[%clk 0:00:45.4]} 53. a5 {[%clk 0:00:07.6]} 53... g4 {[%clk
0:00:42.8]} 54. a6 {[%clk 0:00:07.3]} 54... Ke5 {[%clk 0:00:42.7]} 55. a7 {[%clk
0:00:07.1]} 55... Kf4 {[%clk 0:00:42.3]} 56. Bd5 {[%clk 0:00:04]} 56... Ng5
{[%clk 0:00:42]} 57. Kg2 {[%clk 0:00:02.6]} 57... h3+ {[%clk 0:00:41.9]} 58. Kf2
{[%clk 0:00:03.3]} 58... g3+ {[%clk 0:00:42.5]} 59. Ke2 {[%clk 0:00:03.8]} 59...
g2 {[%clk 0:00:41.4]} 60. Bxg2 {[%clk 0:00:01.4]} 60... hxg2 {[%clk 0:00:41.4]}
61. Kf2 {[%clk 0:00:02.3]} 61... Ra2+ {[%clk 0:00:41.6]} 0-1

[Event "Late-Titled-Tuesday-Blitz-June-25-2024"]
[Site "Chess.com"]
[Date "2024.06.25"]
[Round "2"]
[White "LiemLe"]
[Black "ahkashefi2800"]
[Result "1-0"]
[WhiteElo "3024"]
[BlackElo "2622"]
[TimeControl "180+1"]
[EndTime "14:17:45 PDT"]
[Termination "LiemLe won on time"]

1. c4 {[%clk 0:03:00.9]} 1... c6 {[%clk 0:02:41.6]} 2. Nf3 {[%clk 0:02:59.3]}
2... d5 {[%clk 0:02:37.3]} 3. g3 {[%clk 0:03:00.2]} 3... Nf6 {[%clk 0:02:36.8]}
4. b3 {[%clk 0:02:59.3]} 4... dxc4 {[%clk 0:02:20.4]} 5. bxc4 {[%clk 0:03:00.2]}
5... e5 {[%clk 0:02:20.8]} 6. Nc3 {[%clk 0:02:54.3]} 6... Bc5 {[%clk 0:02:16]}
7. Nxe5 {[%clk 0:02:33.8]} 7... Bxf2+ {[%clk 0:02:11.4]} 8. Kxf2 {[%clk
0:02:34.7]} 8... Qd4+ {[%clk 0:02:11.3]} 9. e3 {[%clk 0:02:35.3]} 9... Qxe5
{[%clk 0:02:11.8]} 10. d4 {[%clk 0:02:36.2]} 10... Qa5 {[%clk 0:02:10.6]} 11.
Bd2 {[%clk 0:02:28.4]} 11... O-O {[%clk 0:02:08.1]} 12. h3 {[%clk 0:02:18.9]}
12... Qf5+ {[%clk 0:01:48.2]} 13. Kg1 {[%clk 0:02:14.8]} 13... Re8 {[%clk
0:01:45.6]} 14. Rh2 {[%clk 0:02:05.2]} 14... Nbd7 {[%clk 0:01:41.7]} 15. Rf2
{[%clk 0:02:04.7]} 15... Qg6 {[%clk 0:01:40.8]} 16. Qf3 {[%clk 0:01:59]} 16...
Nf8 {[%clk 0:01:38.8]} 17. Re1 {[%clk 0:01:57.1]} 17... Qh5 {[%clk 0:01:25.7]}
18. Qxh5 {[%clk 0:01:42.8]} 18... Nxh5 {[%clk 0:01:25.6]} 19. g4 {[%clk
0:01:43.7]} 19... Nf6 {[%clk 0:01:25.1]} 20. e4 {[%clk 0:01:44.1]} 20... Ne6
{[%clk 0:01:20.5]} 21. e5 {[%clk 0:01:40.9]} 21... Nd7 {[%clk 0:01:18.1]} 22.
Be3 {[%clk 0:01:09.2]} 22... c5 {[%clk 0:00:52]} 23. d5 {[%clk 0:01:09.4]} 23...
Nd4 {[%clk 0:00:52]} 24. e6 {[%clk 0:01:00.6]} 24... fxe6 {[%clk 0:00:51]} 25.
Bxd4 {[%clk 0:01:01.1]} 25... cxd4 {[%clk 0:00:50.9]} 26. Nb5 {[%clk 0:01:01.8]}
26... Rf8 {[%clk 0:00:40.6]} 27. dxe6 {[%clk 0:00:50.5]} 27... Rxf2 {[%clk
0:00:23]} 28. Kxf2 {[%clk 0:00:51.4]} 28... Nf6 {[%clk 0:00:20.6]} 29. Nc7
{[%clk 0:00:51.9]} 29... Rb8 {[%clk 0:00:20.7]} 30. g5 {[%clk 0:00:52.4]} 30...
Nh5 {[%clk 0:00:04.4]} 31. e7 {[%clk 0:00:52.7]} 31... Bd7 {[%clk 0:00:04.7]}
32. e8=Q+ {[%clk 0:00:52.8]} 32... Bxe8 {[%clk 0:00:05.1]} 33. Rxe8+ {[%clk
0:00:53.6]} 33... Rxe8 {[%clk 0:00:05.4]} 34. Nxe8 {[%clk 0:00:54.5]} 34... b6
{[%clk 0:00:05.4]} 35. Nd6 {[%clk 0:00:52.4]} 35... Nf4 {[%clk 0:00:04.9]} 36.
Nb5 {[%clk 0:00:52]} 36... d3 {[%clk 0:00:04.7]} 37. Ke3 {[%clk 0:00:51.8]}
37... d2 {[%clk 0:00:04.2]} 38. Kxd2 {[%clk 0:00:51.5]} 38... Ne6 {[%clk
0:00:04.2]} 39. h4 {[%clk 0:00:50.9]} 39... a6 {[%clk 0:00:04.4]} 40. Nc3 {[%clk
0:00:50.1]} 40... Nc5 {[%clk 0:00:04.5]} 41. Nd5 {[%clk 0:00:48.4]} 41... b5
{[%clk 0:00:03.7]} 42. cxb5 {[%clk 0:00:48.4]} 42... axb5 {[%clk 0:00:04.6]} 43.
Bxb5 {[%clk 0:00:49.2]} 43... Ne4+ {[%clk 0:00:05]} 44. Ke3 {[%clk 0:00:48.9]}
44... Nd6 {[%clk 0:00:04.7]} 45. Bd3 {[%clk 0:00:49.4]} 45... h6 {[%clk
0:00:04.1]} 46. g6 {[%clk 0:00:47.2]} 46... Nb7 {[%clk 0:00:03]} 47. Kd4 {[%clk
0:00:46.7]} 47... h5 {[%clk 0:00:01.2]} 48. a4 {[%clk 0:00:44.6]} 48... Kh8
{[%clk 0:00:01.1]} 49. Ba6 {[%clk 0:00:44.3]} 49... Na5 {[%clk 0:00:01.3]} 50.
Kc5 {[%clk 0:00:43.6]} 50... Nb3+ {[%clk 0:00:01.4]} 51. Kb4 {[%clk 0:00:42.7]}
51... Nd4 {[%clk 0:00:01.6]} 52. Bd3 {[%clk 0:00:41]} 52... Nc6+ {[%clk
0:00:01.7]} 53. Kb5 {[%clk 0:00:40.9]} 53... Ne7 {[%clk 0:00:02.1]} 54. Nf4
{[%clk 0:00:38.5]} 54... Nc8 {[%clk 0:00:02.1]} 55. Kc5 {[%clk 0:00:36.8]} 55...
Ne7 {[%clk 0:00:02.1]} 56. a5 {[%clk 0:00:36.8]} 56... Nc8 {[%clk 0:00:01.3]}
57. a6 {[%clk 0:00:36.3]} 57... Na7 {[%clk 0:00:01.6]} 58. Bf5 {[%clk
0:00:35.6]} 1-0

[Event "Late-Titled-Tuesday-Blitz-June-25-2024"]
[Site "Chess.com"]
[Date "2024.06.25"]
[Round "2"]
[White "GM_dmitrij"]
[Black "Yurovskykh_Oleksandr"]
[Result "1/2-1/2"]
[WhiteElo "2984"]
[BlackElo "2619"]
[TimeControl "180+1"]
[EndTime "14:17:48 PDT"]
[Termination "Game drawn by stalemate"]

1. e4 {[%clk 0:03:00.9]} 1... d5 {[%clk 0:02:59.5]} 2. exd5 {[%clk 0:03:00.2]}
2... Qxd5 {[%clk 0:03:00.4]} 3. Nc3 {[%clk 0:03:00.2]} 3... Qd8 {[%clk
0:02:59.9]} 4. d4 {[%clk 0:03:00.2]} 4... Nf6 {[%clk 0:02:59.3]} 5. Nf3 {[%clk
0:03:00.2]} 5... Bg4 {[%clk 0:02:59.8]} 6. h3 {[%clk 0:02:58.8]} 6... Bxf3
{[%clk 0:03:00]} 7. Qxf3 {[%clk 0:02:59.7]} 7... c6 {[%clk 0:03:00.5]} 8. Be3
{[%clk 0:02:54.4]} 8... e6 {[%clk 0:03:00.4]} 9. O-O-O {[%clk 0:02:54.6]} 9...
Bb4 {[%clk 0:02:59.9]} 10. Ne4 {[%clk 0:02:50]} 10... Nxe4 {[%clk 0:02:59.1]}
11. Qxe4 {[%clk 0:02:50.9]} 11... Qd5 {[%clk 0:02:58.7]} 12. Qxd5 {[%clk
0:02:43.8]} 12... cxd5 {[%clk 0:02:59.6]} 13. c4 {[%clk 0:02:39.3]} 13... dxc4
{[%clk 0:02:58.5]} 14. Bxc4 {[%clk 0:02:40.2]} 14... Nd7 {[%clk 0:02:53.2]} 15.
d5 {[%clk 0:02:39.7]} 15... Rc8 {[%clk 0:02:44.9]} 16. Rd4 {[%clk 0:01:40.7]}
16... b5 {[%clk 0:02:11]} 17. dxe6 {[%clk 0:01:40.3]} 17... fxe6 {[%clk
0:02:09.3]} 18. Kb1 {[%clk 0:01:19]} 18... Rxc4 {[%clk 0:02:08.4]} 19. Rxc4
{[%clk 0:01:11.7]} 19... bxc4 {[%clk 0:02:09.3]} 20. Rc1 {[%clk 0:01:12.1]}
20... Nb6 {[%clk 0:02:03.2]} 21. Bxb6 {[%clk 0:01:04.6]} 21... axb6 {[%clk
0:02:04.1]} 22. Rxc4 {[%clk 0:01:05.1]} 22... Bc5 {[%clk 0:02:03.9]} 23. b4
{[%clk 0:01:04.8]} 23... Be7 {[%clk 0:01:58.5]} 24. Rc6 {[%clk 0:01:00.7]} 24...
Kd7 {[%clk 0:01:34.9]} 25. Rxb6 {[%clk 0:01:00.7]} 25... Rf8 {[%clk 0:01:34]}
26. f3 {[%clk 0:01:00.1]} 26... Rf4 {[%clk 0:01:34.1]} 27. a3 {[%clk 0:00:53.5]}
27... Bf6 {[%clk 0:01:23.6]} 28. Kc2 {[%clk 0:00:39.8]} 28... Rc4+ {[%clk
0:01:21.8]} 29. Kd2 {[%clk 0:00:38.6]} 29... Rc3 {[%clk 0:01:06.8]} 30. a4
{[%clk 0:00:31]} 30... Ra3 {[%clk 0:00:50.1]} 31. a5 {[%clk 0:00:31.3]} 31...
Ra2+ {[%clk 0:00:50.3]} 32. Kd3 {[%clk 0:00:31.7]} 32... Rxg2 {[%clk 0:00:49.1]}
33. a6 {[%clk 0:00:32.1]} 33... Ra2 {[%clk 0:00:41.3]} 34. b5 {[%clk 0:00:31.9]}
34... Ra4 {[%clk 0:00:13.6]} 35. Rb7+ {[%clk 0:00:28.2]} 35... Kd6 {[%clk
0:00:13.7]} 36. a7 {[%clk 0:00:20.9]} 36... Bd4 {[%clk 0:00:12.6]} 37. b6 {[%clk
0:00:21]} 37... Bxb6 {[%clk 0:00:04]} 38. Rxb6+ {[%clk 0:00:21.9]} 38... Kc7
{[%clk 0:00:02.9]} 39. Rxe6 {[%clk 0:00:21.4]} 39... Rxa7 {[%clk 0:00:03.1]} 40.
Re7+ {[%clk 0:00:19.6]} 40... Kb6 {[%clk 0:00:03.4]} 41. Rxa7 {[%clk 0:00:20.5]}
41... Kxa7 {[%clk 0:00:04.3]} 42. Ke4 {[%clk 0:00:20.4]} 42... Kb6 {[%clk
0:00:03.4]} 43. Kd5 {[%clk 0:00:20.3]} 43... Kb5 {[%clk 0:00:03.1]} 44. h4
{[%clk 0:00:16.5]} 44... h5 {[%clk 0:00:02.6]} 45. f4 {[%clk 0:00:14.4]} 45...
Kb4 {[%clk 0:00:01.1]} 46. Ke6 {[%clk 0:00:14.6]} 46... Kc4 {[%clk 0:00:01.1]}
47. Kf7 {[%clk 0:00:14.6]} 47... Kd4 {[%clk 0:00:01.6]} 48. Kg6 {[%clk
0:00:05.9]} 48... Ke4 {[%clk 0:00:01.9]} 49. f5 {[%clk 0:00:05.9]} 49... Ke5
{[%clk 0:00:02.3]} 50. Kg5 {[%clk 0:00:06.5]} 50... Ke4 {[%clk 0:00:02.6]} 51.
Kg6 {[%clk 0:00:06.4]} 51... Ke5 {[%clk 0:00:03.1]} 52. Kxh5 {[%clk 0:00:05.8]}
52... Kxf5 {[%clk 0:00:03.5]} 1/2-1/2

[Event "Late-Titled-Tuesday-Blitz-June-25-2024"]
[Site "Chess.com"]
[Date "2024.06.25"]
[Round "2"]
[White "VirtualCoach"]
[Black "konradrutkowski"]
[Result "1-0"]
[WhiteElo "2342"]
[BlackElo "2520"]
[TimeControl "180+1"]
[EndTime "14:17:48 PDT"]
[Termination "VirtualCoach won on time"]

1. e4 {[%clk 0:03:00.9]} 1... c5 {[%clk 0:03:00]} 2. Nf3 {[%clk 0:03:00.1]} 2...
Nc6 {[%clk 0:02:59.4]} 3. d4 {[%clk 0:02:51.3]} 3... cxd4 {[%clk 0:03:00.3]} 4.
Nxd4 {[%clk 0:02:51.6]} 4... Nf6 {[%clk 0:03:00.9]} 5. Nc3 {[%clk 0:02:51.4]}
5... e5 {[%clk 0:03:00.9]} 6. Ndb5 {[%clk 0:02:51.3]} 6... d6 {[%clk 0:03:01.3]}
7. Nd5 {[%clk 0:02:51.3]} 7... Nxd5 {[%clk 0:03:00.8]} 8. exd5 {[%clk
0:02:52.2]} 8... Nb8 {[%clk 0:03:01.5]} 9. a4 {[%clk 0:02:44.8]} 9... Be7 {[%clk
0:02:59.1]} 10. Be2 {[%clk 0:02:44.7]} 10... O-O {[%clk 0:02:59.6]} 11. Be3
{[%clk 0:02:43.9]} 11... Nd7 {[%clk 0:02:55.3]} 12. Nxa7 {[%clk 0:02:34]} 12...
Rxa7 {[%clk 0:02:52.1]} 13. Bxa7 {[%clk 0:02:27.9]} 13... Qa5+ {[%clk
0:02:51.6]} 14. Qd2 {[%clk 0:02:27.5]} 14... Qxa7 {[%clk 0:02:52.5]} 15. b4
{[%clk 0:02:25.7]} 15... f5 {[%clk 0:02:19.9]} 16. O-O {[%clk 0:02:15.9]} 16...
Nf6 {[%clk 0:02:19.4]} 17. a5 {[%clk 0:02:00.2]} 17... f4 {[%clk 0:02:03.4]} 18.
b5 {[%clk 0:01:50.7]} 18... Ne4 {[%clk 0:02:00]} 19. Qb4 {[%clk 0:01:47.6]}
19... Ng5 {[%clk 0:01:48]} 20. b6 {[%clk 0:01:45.7]} 20... Qa8 {[%clk
0:01:40.9]} 21. f3 {[%clk 0:01:45.6]} 21... Bf6 {[%clk 0:00:57.4]} 22. Ra3
{[%clk 0:01:37.6]} 22... Bf5 {[%clk 0:00:28.6]} 23. c4 {[%clk 0:01:22.5]} 23...
Qe8 {[%clk 0:00:25.8]} 24. a6 {[%clk 0:01:14.2]} 24... bxa6 {[%clk 0:00:24.9]}
25. b7 {[%clk 0:01:10.8]} 25... e4 {[%clk 0:00:23.5]} 26. Rxa6 {[%clk
0:01:08.3]} 26... exf3 {[%clk 0:00:18.3]} 27. Bxf3 {[%clk 0:01:06.9]} 27... Qe3+
{[%clk 0:00:17]} 28. Kh1 {[%clk 0:01:01.2]} 28... Nxf3 {[%clk 0:00:16.5]} 29.
b8=Q {[%clk 0:00:50.5]} 29... Rxb8 {[%clk 0:00:14.5]} 30. Qxb8+ {[%clk
0:00:49.9]} 30... Kf7 {[%clk 0:00:15.1]} 31. Ra7+ {[%clk 0:00:49.7]} 31... Kg6
{[%clk 0:00:14.2]} 32. Qb7 {[%clk 0:00:41.8]} 32... Nd2 {[%clk 0:00:09.8]} 33.
Qf7+ {[%clk 0:00:39.5]} 33... Kh6 {[%clk 0:00:09.8]} 34. Rg1 {[%clk 0:00:36]}
34... Be4 {[%clk 0:00:09.5]} 35. Ra2 {[%clk 0:00:21.1]} 35... Bd4 {[%clk
0:00:09.1]} 36. Qe6+ {[%clk 0:00:17.9]} 36... g6 {[%clk 0:00:06.8]} 37. Raa1
{[%clk 0:00:13.1]} 37... Nf3 {[%clk 0:00:03.8]} 38. Qh3+ {[%clk 0:00:12.1]}
38... Kg7 {[%clk 0:00:03.6]} 39. Qd7+ {[%clk 0:00:07.3]} 39... Kh6 {[%clk
0:00:03.6]} 40. Qh3+ {[%clk 0:00:07.2]} 40... Kg7 {[%clk 0:00:03.5]} 41. gxf3
{[%clk 0:00:07.4]} 41... Bxf3+ {[%clk 0:00:03.4]} 42. Rg2 {[%clk 0:00:07.5]}
42... Bxg2+ {[%clk 0:00:03.1]} 43. Qxg2 {[%clk 0:00:06.6]} 43... Bxa1 {[%clk
0:00:02]} 44. Qa2 {[%clk 0:00:06]} 44... f3 {[%clk 0:00:02.1]} 45. Qxa1+ {[%clk
0:00:06]} 1-0

[Event "Late-Titled-Tuesday-Blitz-June-25-2024"]
[Site "Chess.com"]
[Date "2024.06.25"]
[Round "2"]
[White "Nf3c5"]
[Black "Sanan_Sjugirov"]
[Result "1-0"]
[WhiteElo "2632"]
[BlackElo "2999"]
[TimeControl "180+1"]
[EndTime "14:17:52 PDT"]
[Termination "Nf3c5 won on time"]

1. Nf3 {[%clk 0:03:00.9]} 1... Nf6 {[%clk 0:02:58.9]} 2. g3 {[%clk 0:03:00.9]}
2... g6 {[%clk 0:02:55.4]} 3. b3 {[%clk 0:03:01.3]} 3... Bg7 {[%clk 0:02:55.4]}
4. Bb2 {[%clk 0:03:01.6]} 4... O-O {[%clk 0:02:55.6]} 5. Bg2 {[%clk 0:03:02]}
5... c5 {[%clk 0:02:50.4]} 6. c4 {[%clk 0:03:02.3]} 6... Nc6 {[%clk 0:02:48.4]}
7. O-O {[%clk 0:03:01.6]} 7... d6 {[%clk 0:02:45.7]} 8. d4 {[%clk 0:03:00.1]}
8... cxd4 {[%clk 0:02:27.7]} 9. Nxd4 {[%clk 0:02:55.8]} 9... Bd7 {[%clk
0:02:28]} 10. Nc3 {[%clk 0:02:49.8]} 10... a6 {[%clk 0:02:24.4]} 11. Nc2 {[%clk
0:02:34.1]} 11... Rc8 {[%clk 0:02:22.7]} 12. Ne3 {[%clk 0:02:31.2]} 12... Re8
{[%clk 0:02:10.1]} 13. Qd2 {[%clk 0:02:30.6]} 13... Qa5 {[%clk 0:02:07]} 14. a4
{[%clk 0:02:12.7]} 14... Be6 {[%clk 0:01:50.1]} 15. Rab1 {[%clk 0:02:08.2]}
15... Qh5 {[%clk 0:01:38.9]} 16. Rfd1 {[%clk 0:01:40.6]} 16... Bh6 {[%clk
0:01:21.6]} 17. f4 {[%clk 0:00:55.8]} 17... Qc5 {[%clk 0:01:05]} 18. Kh1 {[%clk
0:00:51.7]} 18... Bg7 {[%clk 0:01:02.9]} 19. Ncd5 {[%clk 0:00:40.8]} 19... Bxd5
{[%clk 0:00:45.6]} 20. cxd5 {[%clk 0:00:30.4]} 20... Nb8 {[%clk 0:00:45.5]} 21.
Bd4 {[%clk 0:00:25]} 21... Qc7 {[%clk 0:00:45.1]} 22. Rdc1 {[%clk 0:00:24]}
22... Qd7 {[%clk 0:00:37.7]} 23. h3 {[%clk 0:00:20.6]} 23... Rxc1+ {[%clk
0:00:35.9]} 24. Rxc1 {[%clk 0:00:20.5]} 24... Rc8 {[%clk 0:00:36.3]} 25. Kh2
{[%clk 0:00:21.1]} 25... Qd8 {[%clk 0:00:34.6]} 26. Rc3 {[%clk 0:00:15.1]} 26...
Nbd7 {[%clk 0:00:34]} 27. b4 {[%clk 0:00:12.9]} 27... h5 {[%clk 0:00:24.7]} 28.
Bf3 {[%clk 0:00:12.9]} 28... Rc7 {[%clk 0:00:21.4]} 29. Kg2 {[%clk 0:00:12.9]}
29... Qc8 {[%clk 0:00:19.9]} 30. a5 {[%clk 0:00:12.7]} 30... Ne8 {[%clk
0:00:13.8]} 31. Bxg7 {[%clk 0:00:11.9]} 31... Kxg7 {[%clk 0:00:14]} 32. Qd4+
{[%clk 0:00:10.8]} 32... Kg8 {[%clk 0:00:09.5]} 33. Nd1 {[%clk 0:00:11.4]} 33...
Nef6 {[%clk 0:00:09.3]} 34. e4 {[%clk 0:00:10.9]} 34... Rxc3 {[%clk 0:00:07.8]}
35. Nxc3 {[%clk 0:00:11.6]} 35... Qc7 {[%clk 0:00:07.4]} 36. g4 {[%clk
0:00:10.4]} 36... hxg4 {[%clk 0:00:07]} 37. hxg4 {[%clk 0:00:11.3]} 37... Nh7
{[%clk 0:00:05.8]} 38. g5 {[%clk 0:00:11.6]} 38... Nhf8 {[%clk 0:00:05.7]} 39.
Bg4 {[%clk 0:00:11.1]} 39... b6 {[%clk 0:00:05]} 40. axb6 {[%clk 0:00:09]} 40...
Nxb6 {[%clk 0:00:05.9]} 41. Be2 {[%clk 0:00:08.1]} 41... Qb7 {[%clk 0:00:04.4]}
42. Kf3 {[%clk 0:00:08.1]} 42... Nbd7 {[%clk 0:00:04.5]} 43. Ke3 {[%clk
0:00:07.4]} 43... e5 {[%clk 0:00:04]} 44. dxe6 {[%clk 0:00:06]} 44... Nxe6
{[%clk 0:00:04.4]} 45. Qxd6 {[%clk 0:00:05.7]} 45... Qa7+ {[%clk 0:00:04.9]} 46.
Kd2 {[%clk 0:00:05.5]} 46... a5 {[%clk 0:00:02.5]} 47. b5 {[%clk 0:00:03.3]}
47... a4 {[%clk 0:00:02.8]} 48. f5 {[%clk 0:00:03.7]} 48... gxf5 {[%clk
0:00:01.8]} 49. exf5 {[%clk 0:00:04.1]} 49... Nxg5 {[%clk 0:00:01.6]} 50. Nd5
{[%clk 0:00:04.3]} 50... Qd4+ {[%clk 0:00:01.1]} 51. Ke1 {[%clk 0:00:04.7]}
51... Qg1+ {[%clk 0:00:01]} 52. Bf1 {[%clk 0:00:05]} 1-0

[Event "Late-Titled-Tuesday-Blitz-June-25-2024"]
[Site "Chess.com"]
[Date "2024.06.25"]
[Round "2"]
[White "KoshkaMatrioshka"]
[Black "rychessmaster1"]
[Result "0-1"]
[WhiteElo "2550"]
[BlackElo "2798"]
[TimeControl "180+1"]
[EndTime "14:17:53 PDT"]
[Termination "rychessmaster1 won by resignation"]

1. c4 {[%clk 0:03:00.9]} 1... e6 {[%clk 0:02:59.9]} 2. g3 {[%clk 0:03:00.3]}
2... d5 {[%clk 0:03:00]} 3. Nf3 {[%clk 0:03:00.8]} 3... d4 {[%clk 0:03:00.3]} 4.
e3 {[%clk 0:03:00.5]} 4... c5 {[%clk 0:03:00.8]} 5. exd4 {[%clk 0:03:00.5]} 5...
cxd4 {[%clk 0:03:01.7]} 6. Bg2 {[%clk 0:03:00.7]} 6... Nc6 {[%clk 0:03:01.8]} 7.
O-O {[%clk 0:03:01]} 7... Nf6 {[%clk 0:03:02.1]} 8. Re1 {[%clk 0:03:01.1]} 8...
Bd6 {[%clk 0:03:02.2]} 9. b3 {[%clk 0:02:58.2]} 9... O-O {[%clk 0:03:00.4]} 10.
Ba3 {[%clk 0:02:58.2]} 10... e5 {[%clk 0:02:57]} 11. Bxd6 {[%clk 0:02:57.1]}
11... Qxd6 {[%clk 0:02:57.9]} 12. d3 {[%clk 0:02:57.1]} 12... Re8 {[%clk
0:02:49.4]} 13. Nbd2 {[%clk 0:02:56.2]} 13... h6 {[%clk 0:02:47.2]} 14. Rc1
{[%clk 0:02:50.7]} 14... a5 {[%clk 0:02:20.8]} 15. c5 {[%clk 0:02:50.3]} 15...
Qc7 {[%clk 0:02:21.3]} 16. Nc4 {[%clk 0:02:50.4]} 16... Bg4 {[%clk 0:02:16.3]}
17. h3 {[%clk 0:02:49.5]} 17... Bh5 {[%clk 0:02:15.4]} 18. g4 {[%clk 0:02:50]}
18... Bg6 {[%clk 0:02:15.8]} 19. Nd6 {[%clk 0:02:37.8]} 19... Re7 {[%clk
0:02:04.2]} 20. Nh4 {[%clk 0:02:37.1]} 20... Nb4 {[%clk 0:01:48.5]} 21. Nxg6
{[%clk 0:02:36.3]} 21... fxg6 {[%clk 0:01:48.5]} 22. Qe2 {[%clk 0:02:03.8]}
22... Nbd5 {[%clk 0:01:39]} 23. Be4 {[%clk 0:01:42.8]} 23... Rf8 {[%clk
0:01:30.2]} 24. Qd2 {[%clk 0:01:19.6]} 24... Nxe4 {[%clk 0:01:18]} 25. Rxe4
{[%clk 0:01:19.2]} 25... Nf4 {[%clk 0:01:05.4]} 26. Kh2 {[%clk 0:01:08.3]} 26...
b6 {[%clk 0:01:05.9]} 27. Rce1 {[%clk 0:00:42.7]} 27... Qxc5 {[%clk 0:00:56.3]}
28. Nc4 {[%clk 0:00:39]} 28... Qc6 {[%clk 0:00:34.1]} 29. f3 {[%clk 0:00:23.7]}
29... Qf6 {[%clk 0:00:30.5]} 30. Nxe5 {[%clk 0:00:15.3]} 30... Rxe5 {[%clk
0:00:23.6]} 31. Rxf4 {[%clk 0:00:15.7]} 31... Qxf4+ {[%clk 0:00:20.9]} 32. Qxf4
{[%clk 0:00:15.8]} 32... Rxf4 {[%clk 0:00:21.8]} 33. Rxe5 {[%clk 0:00:16.1]}
33... Rxf3 {[%clk 0:00:22.6]} 34. Rb5 {[%clk 0:00:14.6]} 34... Rxd3 {[%clk
0:00:23.2]} 35. Rxb6 {[%clk 0:00:15]} 35... Rd2+ {[%clk 0:00:23.9]} 36. Kg3
{[%clk 0:00:15.7]} 36... Rxa2 {[%clk 0:00:24.6]} 37. Rd6 {[%clk 0:00:15.3]}
37... Rd2 {[%clk 0:00:23.3]} 38. Rd5 {[%clk 0:00:15]} 38... Rd3+ {[%clk
0:00:23.6]} 39. Kg2 {[%clk 0:00:15.4]} 39... Rxb3 {[%clk 0:00:24.3]} 40. Rxa5
{[%clk 0:00:15.8]} 40... Rd3 {[%clk 0:00:20.9]} 41. Ra6 {[%clk 0:00:15.9]} 41...
Kf7 {[%clk 0:00:20.9]} 42. Rd6 {[%clk 0:00:16.1]} 42... g5 {[%clk 0:00:21.1]}
43. Kh2 {[%clk 0:00:15.7]} 43... Ke7 {[%clk 0:00:21.6]} 44. Rg6 {[%clk
0:00:14.7]} 44... Rd1 {[%clk 0:00:18.1]} 45. Rxg7+ {[%clk 0:00:14.4]} 45... Kf6
{[%clk 0:00:18.8]} 46. Rd7 {[%clk 0:00:14]} 46... Ke5 {[%clk 0:00:17.9]} 47. Kg2
{[%clk 0:00:11]} 47... Kf4 {[%clk 0:00:17]} 48. Rf7+ {[%clk 0:00:08.7]} 48...
Ke3 {[%clk 0:00:16.8]} 49. Re7+ {[%clk 0:00:09.3]} 49... Kd2 {[%clk 0:00:16.7]}
50. Re6 {[%clk 0:00:10]} 50... d3 {[%clk 0:00:16.6]} 51. Rxh6 {[%clk 0:00:10.4]}
51... Re1 {[%clk 0:00:15.9]} 52. Rd6 {[%clk 0:00:08.4]} 52... Re5 {[%clk
0:00:14.9]} 53. Kg3 {[%clk 0:00:06.9]} 53... Ke2 {[%clk 0:00:14.8]} 54. h4
{[%clk 0:00:06.6]} 54... d2 {[%clk 0:00:13]} 55. hxg5 {[%clk 0:00:05.2]} 55...
Re3+ {[%clk 0:00:13.4]} 56. Kf4 {[%clk 0:00:05.2]} 56... Rd3 {[%clk 0:00:14.1]}
57. Rxd3 {[%clk 0:00:04.8]} 57... Kxd3 {[%clk 0:00:14.7]} 58. g6 {[%clk
0:00:05.7]} 58... d1=Q {[%clk 0:00:15.3]} 59. Kg5 {[%clk 0:00:04.8]} 59... Qb3
{[%clk 0:00:15.7]} 60. Kh6 {[%clk 0:00:04.5]} 60... Qg8 {[%clk 0:00:16.4]} 61.
g7 {[%clk 0:00:05]} 61... Ke4 {[%clk 0:00:17]} 62. g5 {[%clk 0:00:05.4]} 62...
Kf5 {[%clk 0:00:17.2]} 0-1